fUSD/lending_fUSD_20240216
["ID","MTS","AMOUNT","RATE_DAILY","PERIOD"]
[314245677,1708119045415,-500.0,0.00039899,31]
[314245678,1708119045426,-500.0,0.00039899,31]
[314245679,1708119045435,-500.0,0.00039899,31]
[314245680,1708119045445,-500.0,0.00039899,31]
[314245681,1708119045455,-500.0,0.00039899,31]
[314245682,1708119045465,-200.0,0.00039899,31]
[314245683,1708119045475,-500.0,0.00039899,31]
[314245684,1708119045484,-500.0,0.00039899,31]
[314245685,1708119045494,-500.0,0.00039899,31]
[314245686,1708119045503,-500.0,0.00039899,31]
[314245687,1708119045513,-500.0,0.00039899,31]
[314245688,1708119045523,-500.0,0.00039899,31]
[314245689,1708119045533,-500.0,0.00039899,31]
[314245690,1708119045543,-500.0,0.00039899,31]
[314245691,1708119045554,-500.0,0.00039899,31]
[314245692,1708119045563,-500.0,0.00039899,31]
[314245693,1708119045573,-500.0,0.00039899,31]
[314245694,1708119045583,-500.0,0.00039899,31]
[314245695,1708119045593,-500.0,0.00039899,31]
[314245696,1708119045603,-500.0,0.00039899,31]
[314245697,1708119045613,-500.0,0.00039899,31]
[314245698,1708119045623,-500.0,0.00039899,31]
[314245699,1708119045633,-500.0,0.00039899,31]
[314245700,1708119045642,-500.0,0.00039899,31]
[314245701,1708119045651,-500.0,0.00039899,31]
[314245702,1708119045663,-250.0,0.00039899,31]
[314245703,1708119045672,-500.0,0.00039899,31]
[314245704,1708119045682,-500.0,0.00039899,31]
[314245705,1708119045691,-500.0,0.00039899,31]
[314245706,1708119045700,-163.08,0.000399,7]
[314245707,1708119045710,-241.00631771,0.0004,2]
[314245708,1708119045721,-10000.0,0.0004,15]
[314245709,1708119045730,-255.0,0.0004,12]
[314245710,1708119045739,-800.24575574,0.0004,4]
[314245711,1708119045749,-671.70995584,0.0004,30]
[314245712,1708119045759,-1000.0,0.0004,9]
[314245713,1708119045769,-2745.44954055,0.0004,2]
[314245714,1708119045778,-275.5,0.0004,2]
[314245715,1708119045787,-480.04,0.00040005,2]
[314245716,1708119045797,-6512.8,0.00040015,2]
[314245717,1708119045807,-19341.67,0.0004002,2]
[314245718,1708119045816,-19341.67,0.0004002,2]
[314245719,1708119045826,-19341.67,0.0004002,2]
[314245720,1708119045835,-19341.67,0.0004002,2]
[314245721,1708119045844,-19341.67,0.0004002,2]
[314245722,1708119045854,-19341.67,0.0004002,2]
[314245723,1708119045864,-19341.67,0.0004002,2]
[314245724,1708119045874,-19341.67,0.0004002,2]
[314245725,1708119045884,-19341.67,0.0004002,2]
[314245726,1708119045894,-19341.67,0.0004002,2]
[314245727,1708119045907,-19341.67,0.0004002,2]
[314245728,1708119045917,-19341.67,0.0004002,2]
[314245729,1708119045927,-19341.67,0.0004002,2]
[314245730,1708119045938,-19341.67,0.0004002,2]
[314245731,1708119045948,-19341.67,0.0004002,2]
[314245732,1708119045958,-19341.79912493,0.0004002,2]
[314245733,1708119045967,-2895.32791264,0.00040059,13]
[314245734,1708119045978,-7113.65847793,0.00040128,2]
[314245735,1708119045988,-152.72220558,0.00040208,7]
[314245736,1708119045998,-375.14,0.00040246,2]
[314245737,1708119046008,-1736.07852,0.00040296,30]
[314245738,1708119046017,-1962.919507,0.00040296,30]
[314245739,1708119046027,-772.07823317,0.00040296,2]
[314245740,1708119046037,-214.0,0.000403,7]
[314245741,1708119046046,-332.19,0.000403,7]
[314245742,1708119046056,-353.46,0.000404,7]
[314245743,1708119046066,-1000.0,0.000404,3]
[314245744,1708119046075,-152.72220558,0.00040585,8]
[314245745,1708119046085,-473.03,0.00040733,2]
[314245746,1708119046095,-7992.88901404,0.00040825,3]
[314245747,1708119046104,-214.0,0.00040848,7]
[314245748,1708119046113,-1717.77,0.00040869,2]
[314245749,1708119046123,-155.0,0.0004094,2]
[314245750,1708119046132,-152.72220558,0.00040962,10]
[314245751,1708119046142,-1000.0,0.00040972,2]
[314245752,1708119046151,-1104.83882378,0.00041,4]
[314245753,1708119046171,-3000.0,0.00041,45]
[314245754,1708119046183,-163.08,0.00041,7]
[314245756,1708119046193,-1000.0,0.00041,11]
[314245758,1708119046202,-1000.0,0.00041,9]
[314245760,1708119046212,-275.5,0.00041,2]
[314245761,1708119046223,-3000.0,0.0004101,45]
[314245762,1708119046232,-153.41977033,0.00041014,2]
[314245763,1708119046243,-3000.0,0.0004102,45]
[314245764,1708119046253,-3000.0,0.0004103,45]
[314245765,1708119046263,-2895.32791264,0.00041039,15]
[314245767,1708119046273,-3000.0,0.0004104,45]
[314245769,1708119046283,-3000.0,0.0004105,45]
[314245771,1708119046292,-3000.0,0.0004106,46]
[314245773,1708119046302,-3000.0,0.0004107,46]
[314245775,1708119046311,-3000.0,0.0004108,46]
[314245777,1708119046321,-3000.0,0.0004109,46]
[314245779,1708119046330,-750.0,0.00041095,2]
[314245781,1708119046340,-256.97434631,0.00041096,2]
[314245783,1708119046349,-368.81742913,0.00041096,30]
[314245785,1708119046359,-3000.0,0.000411,46]
[314245788,1708119046368,-4687.0,0.000411,2]
[314245789,1708119046377,-1626.0,0.000411,2]
[314245792,1708119046387,-2000.0,0.000411,2]
[314245794,1708119046397,-3000.0,0.0004111,46]
[314245796,1708119046406,-3000.0,0.0004112,46]
[314245798,1708119046416,-3000.0,0.0004113,46]
[314245799,1708119046426,-3000.0,0.0004114,46]
[314245800,1708119046435,-3000.0,0.0004115,46]
[314245802,1708119046445,-3000.0,0.0004116,46]
[314245805,1708119046454,-3000.0,0.0004117,46]
[314245806,1708119046464,-3419.374911,0.0004118,46]
[314245807,1708119046473,-150.95,0.00041307,2]
[314245808,1708119046482,-3835.78830815,0.00041314,10]
[314245809,1708119046492,-152.72220558,0.00041338,11]
[314245810,1708119046501,-214.0,0.00041396,7]
[314245811,1708119046510,-332.19,0.000414,7]
[314245812,1708119046519,-1229.65121151,0.00041464,5]
[314245813,1708119046528,-166.18,0.00041542,2]
[314245814,1708119046538,-353.46,0.000416,7]
[314245815,1708119046548,-154.07,0.000416,4]
[314245816,1708119046559,-509.12,0.000416,4]
[314245817,1708119046569,-509.12,0.000416,4]
[314245818,1708119046579,-509.12,0.000416,4]
[314245819,1708119046589,-509.12,0.000416,4]
[314245820,1708119046598,-509.12,0.000416,4]
[314245821,1708119046607,-509.12,0.000416,4]
[314245822,1708119046617,-509.12,0.000416,4]
[314245823,1708119046626,-509.12,0.000416,4]
[314245824,1708119046635,-509.12,0.000416,4]
[314245825,1708119046644,-509.12,0.000416,4]
[314245826,1708119046654,-509.12,0.000416,4]
[314245827,1708119046664,-509.12,0.000416,4]
[314245828,1708119046673,-509.12,0.000416,4]
[314245829,1708119046683,-509.12,0.000416,4]
[314245830,1708119046692,-509.12,0.000416,4]
[314245832,1708119046701,-509.12,0.000416,4]
[314245834,1708119046711,-509.12,0.000416,4]
[314245835,1708119046720,-509.12,0.000416,4]
[314245836,1708119046730,-509.12,0.000416,4]
[314245837,1708119046739,-509.12,0.000416,4]
[314245838,1708119046749,-2253.0,0.000417,87]
[314245839,1708119046758,-152.72220558,0.00041715,13]
[314245840,1708119046768,-7113.65847793,0.00041871,4]
[314245841,1708119046777,-163.08,0.000419,7]
[314245842,1708119046787,-214.0,0.00041944,7]
[314245843,1708119046799,-177.0556127,0.00041977,30]
[314245844,1708119046813,-965.23195016,0.00042,7]
[314245845,1708119046824,-1000.0,0.00042,12]
[314245846,1708119046834,-413.0,0.00042,9]
[314245847,1708119046845,-386.728906,0.00042,2]
[314245848,1708119046855,-331.6713111,0.00042,2]
[314245849,1708119046868,-2895.32791264,0.0004202,16]
[314245850,1708119046879,-375.14,0.00042075,2]
[314245852,1708119046889,-152.72220558,0.00042092,14]
[314245853,1708119046902,-592.89,0.00042092,15]
[314245854,1708119046912,-158.3,0.00042154,2]
[314245855,1708119046922,-473.03,0.00042205,2]
[314245856,1708119046933,-480.04,0.00042268,2]
[314245857,1708119046943,-332.19,0.000423,7]
[314245858,1708119046954,-155.0,0.0004231,2]
[314245859,1708119046964,-177.0556127,0.00042357,30]
[314245860,1708119046974,-750.0,0.00042465,3]
[314245861,1708119046984,-152.72220558,0.00042468,16]
[314245862,1708119046997,-7992.88901404,0.00042487,4]
[314245863,1708119047008,-214.0,0.00042492,7]
[314245864,1708119047023,-1717.77,0.00042513,2]
[314245865,1708119047034,-3665.93,0.00042531,5]
[314245866,1708119047045,-153.41977033,0.00042594,2]
[314245867,1708119047055,-177.0556127,0.00042661,30]
[314245868,1708119047066,-353.46,0.000427,7]
[314245869,1708119047076,-150.95,0.00042782,2]
[314245870,1708119047087,-163.08,0.000428,7]
[314245871,1708119047097,-350.0,0.00042841,2]
[314245872,1708119047108,-500.0,0.00042841,2]
[314245873,1708119047118,-500.0,0.00042841,2]
[314245874,1708119047129,-500.0,0.00042841,2]
[314245875,1708119047140,-500.0,0.00042841,2]
[314245876,1708119047150,-500.0,0.00042841,2]
[314245877,1708119047161,-500.0,0.00042841,2]
[314245878,1708119047173,-500.0,0.00042841,2]
[314245879,1708119047185,-500.0,0.00042841,2]
[314245880,1708119047195,-500.0,0.00042841,2]
[314245881,1708119047206,-500.0,0.00042841,2]
[314245882,1708119047217,-500.0,0.00042841,2]
[314245883,1708119047227,-500.0,0.00042841,2]
[314245884,1708119047237,-500.0,0.00042841,2]
[314245885,1708119047248,-500.0,0.00042841,2]
[314245886,1708119047258,-500.0,0.00042841,2]
[314245887,1708119047268,-500.0,0.00042841,2]
[314245888,1708119047278,-500.0,0.00042841,2]
[314245889,1708119047288,-500.0,0.00042841,2]
[314245890,1708119047298,-500.0,0.00042841,2]
[314245891,1708119047308,-500.0,0.00042841,2]
[314245892,1708119047318,-500.0,0.00042841,2]
[314245893,1708119047329,-500.0,0.00042841,2]
[314245894,1708119047339,-500.0,0.00042841,2]
[314245895,1708119047349,-500.0,0.00042841,2]
[314245896,1708119047359,-500.0,0.00042841,2]
[314245897,1708119047370,-500.0,0.00042841,2]
[314245898,1708119047380,-500.0,0.00042841,2]
[314245899,1708119047390,-500.0,0.00042841,2]
[314245900,1708119047403,-500.0,0.00042841,2]
[314245901,1708119047414,-500.0,0.00042841,2]
[314245902,1708119047425,-500.0,0.00042841,2]
[314245903,1708119047435,-500.0,0.00042841,2]
[314245904,1708119047446,-500.0,0.00042841,2]
[314245905,1708119047456,-500.0,0.00042841,2]
[314245906,1708119047467,-500.0,0.00042841,2]
[314245907,1708119047478,-500.0,0.00042841,2]
[314245908,1708119047488,-500.0,0.00042841,2]
[314245909,1708119047498,-500.0,0.00042841,2]
[314245910,1708119047509,-500.0,0.00042841,2]
[314245911,1708119047519,-500.0,0.00042841,2]
[314245912,1708119047529,-500.0,0.00042841,2]
[314245913,1708119047540,-500.0,0.00042841,2]
[314245914,1708119047551,-500.0,0.00042841,2]
[314245915,1708119047561,-500.0,0.00042841,2]
[314245916,1708119047571,-500.0,0.00042841,2]
[314245917,1708119047582,-500.0,0.00042841,2]
[314245918,1708119047592,-500.0,0.00042841,2]
[314245919,1708119047601,-500.0,0.00042841,2]
[314245920,1708119047612,-500.0,0.00042841,2]
[314245921,1708119047622,-500.0,0.00042841,2]
[314245922,1708119047632,-500.0,0.00042841,2]
[314245923,1708119047642,-500.0,0.00042841,2]
[314245924,1708119047652,-500.0,0.00042841,2]
[314245925,1708119047665,-500.0,0.00042841,2]
[314245926,1708119047675,-500.0,0.00042841,2]
[314245927,1708119047685,-500.0,0.00042841,2]
[314245928,1708119047695,-500.0,0.00042841,2]
[314245929,1708119047705,-500.0,0.00042841,2]
[314245930,1708119047715,-500.0,0.00042841,2]
[314245931,1708119047725,-500.0,0.00042841,2]
[314245932,1708119047735,-500.0,0.00042841,2]
[314245933,1708119047746,-500.0,0.00042841,2]
[314245934,1708119047756,-500.0,0.00042841,2]
[314245935,1708119047765,-500.0,0.00042841,2]
[314245936,1708119047775,-500.0,0.00042841,2]
[314245937,1708119047786,-500.0,0.00042841,2]
[314245938,1708119047796,-500.0,0.00042841,2]
[314245939,1708119047806,-500.0,0.00042841,2]
[314245940,1708119047816,-500.0,0.00042841,2]
[314245941,1708119047826,-500.0,0.00042841,2]
[314245942,1708119047835,-500.0,0.00042841,2]
[314245943,1708119047846,-500.0,0.00042841,2]
[314245944,1708119047856,-500.0,0.00042841,2]
[314245945,1708119047866,-500.0,0.00042841,2]
[314245946,1708119047876,-500.0,0.00042841,2]
[314245947,1708119047887,-500.0,0.00042841,2]
[314245948,1708119047899,-500.0,0.00042841,2]
[314245949,1708119047910,-500.0,0.00042841,2]
[314245950,1708119047922,-500.0,0.00042841,2]
[314245951,1708119047932,-500.0,0.00042841,2]
[314245952,1708119047944,-500.0,0.00042841,2]
[314245953,1708119047954,-500.0,0.00042841,2]
[314245954,1708119047964,-500.0,0.00042841,2]
[314245955,1708119047974,-224.913742,0.00042841,2]
[314245956,1708119047984,-224.913742,0.00042841,2]
[314245957,1708119047994,-152.72220558,0.00042845,17]
[314245958,1708119048005,-177.0556127,0.00042965,30]
[314245959,1708119048015,-150.0,0.00043,2]
[314245960,1708119048025,-1000.0,0.00043,13]
[314245961,1708119048035,-2895.32791264,0.00043001,17]
[314245962,1708119048045,-214.0,0.0004304,7]
[314245963,1708119048055,-1229.65121151,0.00043043,5]
[314245964,1708119048065,-177.0556127,0.00043134,30]
[314245965,1708119048076,-152.72220558,0.00043222,18]
[314245966,1708119048085,-1827.40835,0.00043326,2]
[314245967,1708119048095,-177.0556127,0.00043405,30]
[314245968,1708119048105,-3835.78830815,0.00043452,11]
[314245969,1708119048115,-177.0556127,0.00043497,30]
[314245970,1708119048125,-177.0556127,0.00043551,30]
[314245971,1708119048135,-214.0,0.00043588,7]
[314245972,1708119048146,-152.72220558,0.00043599,20]
[314245973,1708119048156,-154.07,0.000436,4]
[314245974,1708119048167,-154.07,0.000436,4]
[314245975,1708119048177,-509.12,0.000436,4]
[314245976,1708119048187,-509.12,0.000436,4]
[314245977,1708119048197,-509.12,0.000436,4]
[314245978,1708119048207,-509.12,0.000436,4]
[314245979,1708119048217,-509.12,0.000436,4]
[314245980,1708119048227,-509.12,0.000436,4]
[314245981,1708119048237,-509.12,0.000436,4]
[314245982,1708119048247,-509.12,0.000436,4]
[314245983,1708119048257,-509.12,0.000436,4]
[314245984,1708119048267,-509.12,0.000436,4]
[314245985,1708119048277,-509.12,0.000436,4]
[314245986,1708119048287,-509.12,0.000436,4]
[314245987,1708119048297,-509.12,0.000436,4]
[314245988,1708119048307,-509.12,0.000436,4]
[314245989,1708119048317,-509.12,0.000436,4]
[314245990,1708119048327,-509.12,0.000436,4]
[314245991,1708119048336,-509.12,0.000436,4]
[314245992,1708119048346,-509.12,0.000436,4]
[314245993,1708119048357,-509.12,0.000436,4]
[314245994,1708119048367,-509.12,0.000436,4]
[314245995,1708119048377,-7113.65847793,0.00043613,5]
[314245996,1708119048387,-473.03,0.00043677,2]
[314245997,1708119048397,-5005.24,0.000438,2]
[314245998,1708119048407,-750.0,0.00043835,3]
[314245999,1708119048417,-163.35741115,0.00043899,60]
[314246000,1708119048427,-375.14,0.00043904,2]
[314246001,1708119048437,-400.0,0.00043928,2]
[314246002,1708119048447,-152.72220558,0.00043975,21]
[314246003,1708119048457,-2895.32791264,0.00043982,18]
[314246004,1708119048467,-250.0,0.00044,2]
[314246005,1708119048477,-150.0,0.00044,2]
[314246006,1708119048486,-3000.0,0.00044,2]
[314246007,1708119048496,-3000.0,0.00044,2]
[314246008,1708119048506,-3000.0,0.00044,2]
[314246009,1708119048515,-3000.0,0.00044,2]
[314246010,1708119048525,-3000.0,0.00044,2]
[314246011,1708119048534,-3000.0,0.00044,2]
[314246012,1708119048546,-3000.0,0.00044,2]
[314246013,1708119048556,-3000.0,0.00044,2]
[314246014,1708119048565,-3000.0,0.00044,2]
[314246015,1708119048575,-3000.0,0.00044,2]
[314246016,1708119048585,-3000.0,0.00044,2]
[314246017,1708119048595,-3000.0,0.00044,2]
[314246018,1708119048605,-3000.0,0.00044,2]
[314246019,1708119048616,-3000.0,0.00044,2]
[314246020,1708119048625,-3000.0,0.00044,2]
[314246021,1708119048635,-3000.0,0.00044,2]
[314246022,1708119048645,-5157.09746085,0.00044,2]
[314246023,1708119048655,-150.0,0.00044,2]
[314246024,1708119048667,-1000.0,0.00044,14]
[314246025,1708119048677,-332.19,0.00044,7]
[314246026,1708119048688,-151.021799,0.00044098,37]
[314246027,1708119048699,-1028.64363601,0.000441,10]
[314246028,1708119048709,-1017.69165571,0.000441,10]
[314246029,1708119048718,-214.0,0.00044136,7]
[314246030,1708119048729,-1005.0,0.00044137,2]
[314246031,1708119048739,-237.0,0.00044137,2]
[314246032,1708119048748,-858.0,0.00044137,2]
[314246033,1708119048758,-429.0,0.00044137,2]
[314246034,1708119048768,-321.0,0.00044137,2]
[314246035,1708119048778,-343.0,0.00044137,2]
[314246036,1708119048788,-2871.0,0.00044137,2]
[314246037,1708119048798,-1138.0,0.00044137,2]
[314246038,1708119048808,-150.0,0.00044137,2]
[314246039,1708119048817,-454.0,0.00044137,2]
[314246040,1708119048827,-397.0,0.00044137,2]
[314246041,1708119048837,-8164.0,0.00044137,2]
[314246042,1708119048847,-28785.603,0.00044137,2]
[314246043,1708119048858,-2289.0,0.00044137,2]
[314246044,1708119048867,-2927.0,0.00044137,2]
[314246045,1708119048877,-7417.0,0.00044137,2]
[314246046,1708119048887,-4098.0,0.00044137,2]
[314246047,1708119048898,-5628.0,0.00044137,2]
[314246048,1708119048911,-1865.0,0.00044137,2]
[314246049,1708119048922,-1369.0,0.00044137,2]
[314246050,1708119048931,-2835.0,0.00044137,2]
[314246051,1708119048943,-19846.0,0.00044137,2]
[314246052,1708119048954,-842.0,0.00044137,2]
[314246053,1708119048965,-454.0,0.00044137,2]
[314246054,1708119048976,-953.0,0.00044137,2]
[314246055,1708119048987,-709.883,0.00044137,2]
[314246056,1708119048997,-532.0,0.00044137,2]
[314246057,1708119049007,-184.721,0.00044137,2]
[314246058,1708119049017,-1037.0,0.00044137,2]
[314246059,1708119049027,-7992.88901404,0.0004415,6]
[314246060,1708119049038,-1717.77,0.00044156,2]
[314246061,1708119049047,-153.41977033,0.00044174,2]
[314246062,1708119049057,-155.82037408,0.00044182,30]
[314246063,1708119049067,-5800.0,0.00044188,2]
[314246064,1708119049078,-151.021799,0.00044198,37]
[314246065,1708119049088,-150.95,0.00044257,2]
[314246066,1708119049098,-150.0,0.00044267,2]
[314246067,1708119049108,-150.0,0.00044267,7]
[314246068,1708119049118,-264.71552263,0.00044274,2]
[314246069,1708119049128,-1080.08996213,0.00044278,2]
[314246070,1708119049138,-1533.59335103,0.00044278,2]
[314246071,1708119049148,-600.0,0.00044278,2]
[314246072,1708119049158,-299.28200967,0.00044289,5]
[314246073,1708119049168,-201.4066917,0.00044314,3]
[314246074,1708119049178,-152.72220558,0.00044352,23]
[314246075,1708119049188,-812.43067898,0.00044366,5]
[314246076,1708119049199,-1910.25276627,0.00044393,8]
[314246077,1708119049209,-177.0556127,0.00044403,30]
[314246078,1708119049219,-205.0,0.00044482,10]
[314246079,1708119049230,-291.57397424,0.00044483,2]
[314246080,1708119049493,-1784.05963177,0.00044489,2]
[314246081,1708119049514,-731.98747684,0.00044489,2]
[314246082,1708119049523,-12472.81309868,0.00044489,2]
[314246083,1708119049533,-480.04,0.00044532,2]
[314246084,1708119049543,-1229.65121151,0.00044622,5]
[314246085,1708119049553,-214.0,0.00044684,7]
[314246086,1708119049563,-353.46,0.000447,7]
[314246087,1708119049572,-166.18,0.00044709,2]
[314246088,1708119049581,-152.72220558,0.00044729,24]
[314246089,1708119049591,-174.3603381,0.00044744,2]
[314246090,1708119049600,-150.0,0.00044754,2]
[314246091,1708119049609,-360.0,0.00044775,12]
[314246092,1708119049618,-360.0,0.00044775,12]
[314246093,1708119049627,-200.0,0.00044775,2]
[314246094,1708119049637,-360.0,0.00044775,12]
[314246095,1708119049646,-450.0,0.00044775,12]
[314246096,1708119049656,-150.0,0.00044808,2]
[314246097,1708119049666,-300.0,0.00044815,7]
[314246098,1708119049676,-150.0,0.00044899,60]
[314246099,1708119049686,-449.2797,0.000449,2]
[314246100,1708119049695,-332.19,0.000449,7]
[314246101,1708119049705,-2478.3,0.00044931,105]
[314246102,1708119049714,-233411.579385,0.00044958,2]
[314246103,1708119049723,-2895.32791264,0.00044962,20]
[314246104,1708119049732,-819685.20914452,0.00044989,5]
[314246105,1708119049742,-7491.8975307,0.00044989,2]
[314246106,1708119049751,-16493.8208105,0.00044989,2]
[314246107,1708119049760,-285587.0026766,0.00044989,2]
[314246108,1708119049769,-39217.2898531,0.00044989,2]
[314246109,1708119049779,-7691.0466684,0.00044989,2]
[314246110,1708119049787,-151.0,0.00044989,14]
[314246111,1708119049797,-224.913742,0.00044989,2]
[314246112,1708119049805,-224.913742,0.00044989,2]
[314246113,1708119049814,-254.52395784,0.00044999,4]
[314246114,1708119049824,-172.94189201,0.00044999,4]
[314246115,1708119049833,-58670.97556759,0.00045,10]
[314246116,1708119049843,-345.0,0.00045,7]
[314246117,1708119049852,-610.23449421,0.00045,30]
[314246118,1708119049861,-145942.0,0.00045,7]
[314246119,1708119049871,-3000.0,0.00045,61]
[314246120,1708119049881,-3000.0,0.00045,61]
[314246121,1708119049890,-3000.0,0.00045,26]
[314246122,1708119049903,-4000.0,0.00045,2]
[314246123,1708119049913,-151.0,0.00045003,7]
[314246124,1708119049922,-151.0,0.00045003,14]
[314246125,1708119049932,-3000.0,0.0004501,61]
[314246126,1708119049943,-3000.0,0.0004501,61]
[314246127,1708119049953,-3000.0,0.0004502,61]
[314246128,1708119049962,-5483.874982,0.0004502,61]
[314246129,1708119049972,-3000.0,0.0004503,61]
[314246130,1708119049983,-3000.0,0.0004504,61]
[314246131,1708119049993,-3000.0,0.0004505,61]
[314246132,1708119050002,-3000.0,0.0004506,61]
[314246133,1708119050012,-3000.0,0.0004507,61]
[314246134,1708119050022,-3000.0,0.0004508,61]
[314246135,1708119050032,-3000.0,0.0004509,61]
[314246136,1708119050041,-177.0556127,0.00045094,30]
[314246137,1708119050051,-3000.0,0.000451,61]
[314246138,1708119050060,-5005.24,0.00045105,2]
[314246139,1708119050070,-152.72220558,0.00045105,26]
[314246140,1708119050080,-3000.0,0.0004511,61]
[314246141,1708119050090,-3000.0,0.0004512,61]
[314246142,1708119050099,-177.0556127,0.0004512,30]
[314246143,1708119050108,-3000.0,0.0004513,62]
[314246144,1708119050118,-3000.0,0.0004514,62]
[314246145,1708119050128,-473.03,0.00045149,2]
[314246146,1708119050137,-3000.0,0.0004515,62]
[314246147,1708119050147,-3000.0,0.0004516,62]
[314246148,1708119050157,-3055.737311,0.0004517,62]
[314246149,1708119050167,-1000.0,0.000452,2]
[314246150,1708119050177,-750.0,0.00045205,3]
[314246151,1708119050186,-214.0,0.00045232,30]
[314246152,1708119050196,-7113.65847793,0.00045356,7]
[314246153,1708119050206,-316.8825,0.00045363,30]
[314246154,1708119050216,-163.08,0.000454,7]
[314246155,1708119050225,-152.72220558,0.00045482,27]
[314246156,1708119050234,-173.256688,0.00045483,30]
[314246157,1708119050243,-407.090049,0.00045483,30]
[314246158,1708119050252,-184.786506,0.00045483,30]
[314246159,1708119050262,-172.125901,0.00045483,30]
[314246160,1708119050271,-942.433545,0.00045483,30]
[314246161,1708119050281,-168.848607,0.00045483,30]
[314246162,1708119050290,-1418.569335,0.00045483,30]
[314246163,1708119050300,-235.608386,0.00045483,30]
[314246164,1708119050309,-155.20515,0.00045483,30]
[314246165,1708119050318,-184.574892,0.00045483,30]
[314246166,1708119050327,-173.3161,0.00045483,30]
[314246167,1708119050337,-3976.50949,0.00045483,30]
[314246168,1708119050347,-727.913497,0.00045483,30]
[314246169,1708119050357,-171.949039,0.00045483,30]
[314246170,1708119050366,-152.747184,0.00045483,30]
[314246171,1708119050377,-174.296267,0.00045483,30]
[314246172,1708119050386,-455.497405,0.00045483,30]
[314246173,1708119050395,-5964.764236,0.00045483,30]
[314246174,1708119050405,-1091.870246,0.00045483,30]
[314246175,1708119050415,-294.797584,0.00045483,30]
[314246176,1708119050425,-163.279655,0.00045483,30]
[314246177,1708119050435,-173.590441,0.00045483,30]
[314246178,1708119050445,-205.0,0.00045517,10]
[314246179,1708119050454,-3835.78830815,0.0004559,12]
[314246180,1708119050464,-353.46,0.000456,7]
[314246181,1708119050473,-158.3,0.00045667,2]
[314246182,1708119050483,-177.0556127,0.0004567,30]
[314246183,1708119050492,-154.07,0.000457,5]
[314246184,1708119050501,-154.07,0.000457,5]
[314246185,1708119050510,-332.19,0.000457,7]
[314246186,1708119050520,-438.0,0.000457,30]
[314246187,1708119050529,-346.0,0.000457,30]
[314246188,1708119050539,-509.12,0.000457,5]
[314246189,1708119050550,-509.12,0.000457,5]
[314246190,1708119050560,-509.12,0.000457,5]
[314246191,1708119050569,-509.12,0.000457,5]
[314246192,1708119050580,-509.12,0.000457,5]
[314246193,1708119050589,-509.12,0.000457,5]
[314246194,1708119050600,-509.12,0.000457,5]
[314246195,1708119050609,-509.12,0.000457,5]
[314246196,1708119050619,-509.12,0.000457,5]
[314246197,1708119050629,-509.12,0.000457,5]
[314246198,1708119050640,-509.12,0.000457,5]
[314246199,1708119050649,-509.12,0.000457,5]
[314246200,1708119050659,-509.12,0.000457,5]
[314246201,1708119050669,-509.12,0.000457,5]
[314246202,1708119050679,-509.12,0.000457,5]